[Event "*** Titled Tuesday Blitz"]
[Site "Chess.com"]
[Date "2021.03.30"]
[Round "7"]
[White "AttilaTurzo"]
[Black "Nikolaj_6"]
[Result "0-1"]
[WhiteElo "2503"]
[BlackElo "2659"]
[TimeControl "180+1"]
[EndTime "11:20:39 PDT"]
[Termination "Nikolaj_6 won by resignation"]

1. d4 {[%clk 0:03:00.9]} 1... Nf6 {[%clk 0:02:59.6]} 2. Nf3 {[%clk 0:03:00.7]}
2... e6 {[%clk 0:02:59.6]} 3. Bf4 {[%clk 0:02:59.4]} 3... d5 {[%clk 0:02:58.9]}
4. e3 {[%clk 0:02:59.7]} 4... c5 {[%clk 0:02:57.8]} 5. c3 {[%clk 0:02:58.9]}
5... Bd6 {[%clk 0:02:57.8]} 6. Bg3 {[%clk 0:02:59.6]} 6... Qc7 {[%clk
0:02:56.8]} 7. dxc5 {[%clk 0:02:58.6]} 7... Qxc5 {[%clk 0:02:56.4]} 8. Nbd2
{[%clk 0:02:58.9]} 8... Nbd7 {[%clk 0:02:51.5]} 9. Bd3 {[%clk 0:02:58.7]} 9...
b6 {[%clk 0:02:44.6]} 10. e4 {[%clk 0:02:53.6]} 10... Bxg3 {[%clk 0:02:36.9]}
11. hxg3 {[%clk 0:02:53.2]} 11... Bb7 {[%clk 0:02:36.5]} 12. e5 {[%clk
0:02:34.3]} 12... Ne4 {[%clk 0:02:35.8]} 13. Qe2 {[%clk 0:02:29.2]} 13... Nxd2
{[%clk 0:02:21]} 14. Qxd2 {[%clk 0:02:07.1]} 14... h6 {[%clk 0:02:18.9]} 15. O-O
{[%clk 0:02:05.1]} 15... a5 {[%clk 0:02:10.7]} 16. Qe2 {[%clk 0:02:02.1]} 16...
Qc7 {[%clk 0:02:02.3]} 17. Bb5 {[%clk 0:01:57.3]} 17... Bc6 {[%clk 0:02:00]} 18.
Bd3 {[%clk 0:01:52.8]} 18... Bb7 {[%clk 0:01:59.8]} 19. Rfe1 {[%clk 0:01:51.3]}
19... Nc5 {[%clk 0:01:57.8]} 20. Bc2 {[%clk 0:01:47.4]} 20... O-O {[%clk
0:01:53.9]} 21. Nd4 {[%clk 0:01:46.9]} 21... Ba6 {[%clk 0:01:48.3]} 22. Qe3
{[%clk 0:01:44]} 22... Rae8 {[%clk 0:01:37.1]} 23. f4 {[%clk 0:01:41.7]} 23...
Bb7 {[%clk 0:01:34]} 24. g4 {[%clk 0:01:35.8]} 24... Ne4 {[%clk 0:01:33.7]} 25.
Nb5 {[%clk 0:01:29]} 25... Qd7 {[%clk 0:01:30.1]} 26. Bxe4 {[%clk 0:01:27.5]}
26... Qxb5 {[%clk 0:01:28.7]} 27. Bd3 {[%clk 0:01:09.6]} 27... Qc5 {[%clk
0:01:24.4]} 28. Qd4 {[%clk 0:01:00.9]} 28... f6 {[%clk 0:01:21.3]} 29. g3 {[%clk
0:00:56.6]} 29... g5 {[%clk 0:00:59.8]} 30. Kg2 {[%clk 0:00:37.4]} 30... Qxd4
{[%clk 0:00:44.1]} 31. cxd4 {[%clk 0:00:37.1]} 31... fxe5 {[%clk 0:00:43.6]} 32.
fxe5 {[%clk 0:00:35.3]} 32... Kg7 {[%clk 0:00:38.6]} 33. Rac1 {[%clk 0:00:34.2]}
33... Rc8 {[%clk 0:00:37.6]} 34. Rh1 {[%clk 0:00:27.1]} 34... Rxc1 {[%clk
0:00:28.1]} 35. Rxc1 {[%clk 0:00:26.6]} 35... Rf7 {[%clk 0:00:28.4]} 36. Rc3
{[%clk 0:00:21.5]} 36... Ba8 {[%clk 0:00:22.2]} 37. Rb3 {[%clk 0:00:20.5]} 37...
Rb7 {[%clk 0:00:21.2]} 38. Rc3 {[%clk 0:00:20.5]} 38... Re7 {[%clk 0:00:20.2]}
39. Rc8 {[%clk 0:00:20.2]} 39... Bb7 {[%clk 0:00:20.2]} 40. Rb8 {[%clk
0:00:19.3]} 40... Rc7 {[%clk 0:00:20.2]} 41. Re8 {[%clk 0:00:18]} 41... Kf7
{[%clk 0:00:19.8]} 42. Rd8 {[%clk 0:00:18.1]} 42... Kg7 {[%clk 0:00:19.2]} 43.
Rd6 {[%clk 0:00:18.2]} 43... Kf7 {[%clk 0:00:19.5]} 44. Rxb6 {[%clk 0:00:18.2]}
44... Bc6 {[%clk 0:00:19]} 45. Ba6 {[%clk 0:00:17.5]} 45... a4 {[%clk
0:00:18.7]} 46. b4 {[%clk 0:00:16.9]} 46... axb3 {[%clk 0:00:18.3]} 47. axb3
{[%clk 0:00:17.4]} 47... Bd7 {[%clk 0:00:17.8]} 48. Rb7 {[%clk 0:00:17.2]} 48...
Rc2+ {[%clk 0:00:17]} 49. Kf3 {[%clk 0:00:16.6]} 49... Ke8 {[%clk 0:00:17.9]}
50. Bb5 {[%clk 0:00:16.1]} 50... Rc3+ {[%clk 0:00:17.3]} 51. Kf2 {[%clk
0:00:15.8]} 51... Bxb5 {[%clk 0:00:17.8]} 52. Rxb5 {[%clk 0:00:16.7]} 52... Rd3
{[%clk 0:00:18.1]} 53. Rb6 {[%clk 0:00:16]} 53... Kf7 {[%clk 0:00:18.1]} 54.
Rb7+ {[%clk 0:00:15.2]} 54... Ke8 {[%clk 0:00:18.1]} 55. Rb6 {[%clk 0:00:12.5]}
55... Kd7 {[%clk 0:00:17.8]} 56. Rd6+ {[%clk 0:00:12.5]} 56... Ke7 {[%clk
0:00:17.9]} 57. Rb6 {[%clk 0:00:08.8]} 57... Rxd4 {[%clk 0:00:17.7]} 58. b4
{[%clk 0:00:07.7]} 58... Rxg4 {[%clk 0:00:17.3]} 59. Rb7+ {[%clk 0:00:07.9]}
59... Kf8 {[%clk 0:00:16.8]} 60. b5 {[%clk 0:00:08.3]} 60... Rb4 {[%clk
0:00:15.7]} 61. b6 {[%clk 0:00:08.4]} 61... h5 {[%clk 0:00:16.1]} 62. Kf3 {[%clk
0:00:08.1]} 62... h4 {[%clk 0:00:16.2]} 63. gxh4 {[%clk 0:00:08.5]} 63... gxh4
{[%clk 0:00:17.1]} 64. Rb8+ {[%clk 0:00:07.9]} 64... Kg7 {[%clk 0:00:16.7]} 65.
b7 {[%clk 0:00:08.8]} 65... Rb3+ {[%clk 0:00:16.1]} 66. Kg4 {[%clk 0:00:08.6]}
66... h3 {[%clk 0:00:16.6]} 67. Re8 {[%clk 0:00:07.5]} 67... Rxb7 {[%clk
0:00:16.1]} 68. Kxh3 {[%clk 0:00:05.7]} 68... Kf7 {[%clk 0:00:15.3]} 69. Rc8
{[%clk 0:00:04.2]} 69... Rb4 {[%clk 0:00:15.1]} 70. Kg3 {[%clk 0:00:04.1]} 70...
Re4 {[%clk 0:00:14.3]} 71. Rc7+ {[%clk 0:00:04.1]} 71... Kg6 {[%clk 0:00:14.3]}
72. Kf3 {[%clk 0:00:03.7]} 72... Rxe5 {[%clk 0:00:14.5]} 73. Ra7 {[%clk
0:00:04]} 73... Kf6 {[%clk 0:00:14.8]} 74. Kf4 {[%clk 0:00:03.2]} 74... Re4+
{[%clk 0:00:15.1]} 75. Kf3 {[%clk 0:00:03.5]} 75... Ke5 {[%clk 0:00:16]} 76. Ra6
{[%clk 0:00:03.3]} 76... Rc4 {[%clk 0:00:16]} 77. Rb6 {[%clk 0:00:02.3]} 77...
Rc3+ {[%clk 0:00:16]} 78. Ke2 {[%clk 0:00:02.5]} 78... Kf5 {[%clk 0:00:15.3]}
79. Kd2 {[%clk 0:00:02.7]} 79... Rc4 {[%clk 0:00:15.5]} 80. Rd6 {[%clk
0:00:02.9]} 80... Ke5 {[%clk 0:00:14.8]} 81. Rd8 {[%clk 0:00:02.8]} 81... Ra4
{[%clk 0:00:14.6]} 82. Kd3 {[%clk 0:00:02.9]} 82... Ra3+ {[%clk 0:00:14.3]} 83.
Ke2 {[%clk 0:00:03.1]} 83... Ke4 {[%clk 0:00:13.8]} 84. Kd2 {[%clk 0:00:03.5]}
84... d4 {[%clk 0:00:13.2]} 85. Rd7 {[%clk 0:00:03.3]} 85... e5 {[%clk
0:00:13.3]} 86. Ke2 {[%clk 0:00:03.4]} 86... Ra2+ {[%clk 0:00:13.4]} 87. Kd1
{[%clk 0:00:03.9]} 87... Ke3 {[%clk 0:00:13.4]} 88. Rh7 {[%clk 0:00:03.8]} 88...
d3 {[%clk 0:00:11.4]} 89. Rh3+ {[%clk 0:00:03.7]} 89... Kd4 {[%clk 0:00:11.6]}
90. Ke1 {[%clk 0:00:03.9]} 90... e4 {[%clk 0:00:11.8]} 91. Kd1 {[%clk
0:00:03.3]} 91... Rg2 {[%clk 0:00:11.3]} 92. Kc1 {[%clk 0:00:04.2]} 92... e3
{[%clk 0:00:11.2]} 93. Rh4+ {[%clk 0:00:03.2]} 93... Kc3 {[%clk 0:00:11.4]} 0-1

[Event "*** Titled Tuesday Blitz"]
[Site "Chess.com"]
[Date "2021.03.30"]
[Round "7"]
[White "Vaathi_Coming"]
[Black "deribas12345"]
[Result "1/2-1/2"]
[WhiteElo "2795"]
[BlackElo "2609"]
[TimeControl "180+1"]
[EndTime "11:21:05 PDT"]
[Termination "Game drawn - insufficient material"]

1. e3 {[%clk 0:03:00.9]} 1... c5 {[%clk 0:02:57.5]} 2. e4 {[%clk 0:02:58.4]}
2... e6 {[%clk 0:02:56.8]} 3. Nf3 {[%clk 0:02:56.9]} 3... d5 {[%clk 0:02:57]} 4.
exd5 {[%clk 0:02:55.2]} 4... exd5 {[%clk 0:02:57.9]} 5. Bb5+ {[%clk 0:02:54.2]}
5... Nc6 {[%clk 0:02:57.8]} 6. O-O {[%clk 0:02:53.5]} 6... Bd6 {[%clk 0:02:58]}
7. d4 {[%clk 0:02:50.8]} 7... c4 {[%clk 0:02:58.1]} 8. b3 {[%clk 0:02:49.9]}
8... cxb3 {[%clk 0:02:57.8]} 9. axb3 {[%clk 0:02:49.2]} 9... Ne7 {[%clk
0:02:58.7]} 10. Bg5 {[%clk 0:02:36.7]} 10... f6 {[%clk 0:02:58.4]} 11. Bh4
{[%clk 0:02:36.7]} 11... O-O {[%clk 0:02:57.9]} 12. Bg3 {[%clk 0:02:31.8]} 12...
Bxg3 {[%clk 0:02:57.2]} 13. hxg3 {[%clk 0:02:32]} 13... Bg4 {[%clk 0:02:57.3]}
14. Be2 {[%clk 0:02:30.1]} 14... Nf5 {[%clk 0:02:47]} 15. c3 {[%clk 0:02:26.5]}
15... Re8 {[%clk 0:02:46.3]} 16. Nbd2 {[%clk 0:02:24]} 16... Nd6 {[%clk
0:02:40.4]} 17. Re1 {[%clk 0:02:16.7]} 17... Ne4 {[%clk 0:02:33.2]} 18. Nxe4
{[%clk 0:02:16.4]} 18... dxe4 {[%clk 0:02:33.3]} 19. Nd2 {[%clk 0:02:16.7]}
19... Bxe2 {[%clk 0:02:32.7]} 20. Qxe2 {[%clk 0:02:17.4]} 20... f5 {[%clk
0:02:29.5]} 21. Qb5 {[%clk 0:02:09.4]} 21... Qf6 {[%clk 0:02:13.4]} 22. Nc4
{[%clk 0:02:01.5]} 22... Rab8 {[%clk 0:01:48.3]} 23. Ne3 {[%clk 0:01:41.5]}
23... Rf8 {[%clk 0:01:37.6]} 24. b4 {[%clk 0:01:27.6]} 24... Kh8 {[%clk
0:01:34]} 25. Qe2 {[%clk 0:01:19.6]} 25... a6 {[%clk 0:01:27.5]} 26. b5 {[%clk
0:01:20]} 26... axb5 {[%clk 0:01:27.1]} 27. Qxb5 {[%clk 0:01:20.9]} 27... f4
{[%clk 0:01:14.5]} 28. gxf4 {[%clk 0:01:04.4]} 28... Qxf4 {[%clk 0:01:14]} 29.
Re2 {[%clk 0:01:01.2]} 29... h6 {[%clk 0:01:06.2]} 30. Rb2 {[%clk 0:00:53]}
30... Ra8 {[%clk 0:01:02.1]} 31. Rxa8 {[%clk 0:00:51]} 31... Rxa8 {[%clk
0:01:03]} 32. Qxb7 {[%clk 0:00:50.9]} 32... Rb8 {[%clk 0:00:57.6]} 33. Qxc6
{[%clk 0:00:36.4]} 33... Rxb2 {[%clk 0:00:56.7]} 34. Qc8+ {[%clk 0:00:29.7]}
34... Kh7 {[%clk 0:00:56.6]} 35. Qf5+ {[%clk 0:00:30.1]} 35... Qxf5 {[%clk
0:00:55.6]} 36. Nxf5 {[%clk 0:00:31]} 36... Rb1+ {[%clk 0:00:48.7]} 37. Kh2
{[%clk 0:00:30.7]} 37... Rc1 {[%clk 0:00:39.2]} 38. Ng3 {[%clk 0:00:26.1]} 38...
Rxc3 {[%clk 0:00:38.2]} 39. Nxe4 {[%clk 0:00:25.9]} 39... Rc4 {[%clk 0:00:38.5]}
40. f3 {[%clk 0:00:25.4]} 40... Rxd4 {[%clk 0:00:38.5]} 41. g4 {[%clk
0:00:25.3]} 41... Kg6 {[%clk 0:00:36.3]} 42. Kg3 {[%clk 0:00:25.4]} 42... Ra4
{[%clk 0:00:34]} 43. Nf2 {[%clk 0:00:24.3]} 43... Kf6 {[%clk 0:00:33.4]} 44. Nd3
{[%clk 0:00:23]} 44... g5 {[%clk 0:00:29.8]} 45. Kf2 {[%clk 0:00:21.6]} 45...
Ra5 {[%clk 0:00:26.9]} 46. Ke3 {[%clk 0:00:20.8]} 46... Kg6 {[%clk 0:00:26.8]}
47. Nf2 {[%clk 0:00:20.3]} 47... h5 {[%clk 0:00:25.3]} 48. gxh5+ {[%clk
0:00:19.3]} 48... Kxh5 {[%clk 0:00:26.2]} 49. Ne4 {[%clk 0:00:18.7]} 49... Kh4
{[%clk 0:00:23.7]} 50. Kf2 {[%clk 0:00:17.7]} 50... Ra3 {[%clk 0:00:22.5]} 51.
Kg2 {[%clk 0:00:17]} 51... Ra2+ {[%clk 0:00:20.5]} 52. Kf1 {[%clk 0:00:17.2]}
52... Kh5 {[%clk 0:00:20.5]} 53. Ng3+ {[%clk 0:00:14.8]} 53... Kg6 {[%clk
0:00:20.5]} 54. Ne2 {[%clk 0:00:14.8]} 54... Kf5 {[%clk 0:00:19.5]} 55. Kf2
{[%clk 0:00:15]} 55... Rb2 {[%clk 0:00:15.8]} 56. Ke3 {[%clk 0:00:14.3]} 56...
Kg6 {[%clk 0:00:15.5]} 57. Ng3 {[%clk 0:00:06.6]} 57... Rb3+ {[%clk 0:00:15.6]}
58. Kf2 {[%clk 0:00:06.7]} 58... Kf6 {[%clk 0:00:15.1]} 59. Ne4+ {[%clk
0:00:06.1]} 59... Kf5 {[%clk 0:00:14.3]} 60. Ng3+ {[%clk 0:00:06.6]} 60... Ke5
{[%clk 0:00:14.3]} 61. Ne2 {[%clk 0:00:07.1]} 61... Rb2 {[%clk 0:00:13]} 62. Ke3
{[%clk 0:00:07]} 62... Ra2 {[%clk 0:00:12.6]} 63. f4+ {[%clk 0:00:06.4]} 63...
gxf4+ {[%clk 0:00:11]} 64. Nxf4 {[%clk 0:00:07.3]} 64... Ra3+ {[%clk 0:00:08.4]}
65. Nd3+ {[%clk 0:00:07.8]} 65... Kd5 {[%clk 0:00:07.6]} 66. Ke2 {[%clk
0:00:08.4]} 66... Kd4 {[%clk 0:00:07.7]} 67. Nf2 {[%clk 0:00:08.4]} 67... Re3+
{[%clk 0:00:07]} 68. Kd2 {[%clk 0:00:06]} 68... Re6 {[%clk 0:00:07.9]} 69. Nd3
{[%clk 0:00:04]} 69... Rh6 {[%clk 0:00:07.9]} 70. Nf2 {[%clk 0:00:03.6]} 70...
Re6 {[%clk 0:00:06.3]} 71. Nd3 {[%clk 0:00:03.5]} 71... Re7 {[%clk 0:00:06.8]}
72. Nf2 {[%clk 0:00:03.8]} 72... Ra7 {[%clk 0:00:07]} 73. Ke2 {[%clk 0:00:03.5]}
73... Re7+ {[%clk 0:00:06.9]} 74. Kf3 {[%clk 0:00:03.4]} 74... Rf7+ {[%clk
0:00:07.8]} 75. Ke2 {[%clk 0:00:03.7]} 75... Ke5 {[%clk 0:00:08.2]} 76. Nd3+
{[%clk 0:00:03.9]} 76... Ke4 {[%clk 0:00:08]} 77. Nf2+ {[%clk 0:00:04.8]} 77...
Kd4 {[%clk 0:00:07.4]} 78. Nd1 {[%clk 0:00:03.5]} 78... Re7+ {[%clk 0:00:06.2]}
79. Kd2 {[%clk 0:00:03.7]} 79... Ra7 {[%clk 0:00:06.6]} 80. Ke2 {[%clk
0:00:03.7]} 80... Ra2+ {[%clk 0:00:06.5]} 81. Kf3 {[%clk 0:00:04.2]} 81... Ra1
{[%clk 0:00:05.8]} 82. Nf2 {[%clk 0:00:05.1]} 82... Ra3+ {[%clk 0:00:06.1]} 83.
Ke2 {[%clk 0:00:04.9]} 83... Ra8 {[%clk 0:00:05.4]} 84. Ng4 {[%clk 0:00:04.7]}
84... Rf8 {[%clk 0:00:05.1]} 85. Nf2 {[%clk 0:00:04.7]} 85... Re8+ {[%clk
0:00:05.7]} 86. Kf3 {[%clk 0:00:04.5]} 86... Ke5 {[%clk 0:00:06.6]} 87. Nd3+
{[%clk 0:00:04.1]} 87... Kf5 {[%clk 0:00:06.3]} 88. Nf2 {[%clk 0:00:04.7]} 88...
Ra8 {[%clk 0:00:06.8]} 89. Ke3 {[%clk 0:00:05]} 89... Ra4 {[%clk 0:00:07.7]} 90.
Nd3 {[%clk 0:00:05.2]} 90... Ra3 {[%clk 0:00:08.4]} 91. Kd4 {[%clk 0:00:05.3]}
91... Ke6 {[%clk 0:00:09.3]} 92. Nc5+ {[%clk 0:00:04.8]} 92... Kd6 {[%clk
0:00:09.2]} 93. Nd3 {[%clk 0:00:04.8]} 93... Kc6 {[%clk 0:00:10.1]} 94. Ne5+
{[%clk 0:00:04.7]} 94... Kb5 {[%clk 0:00:10.1]} 95. Nd3 {[%clk 0:00:04.7]} 95...
Ra1 {[%clk 0:00:11]} 96. Ke3 {[%clk 0:00:05]} 96... Kc4 {[%clk 0:00:10.8]} 97.
Ne5+ {[%clk 0:00:05.5]} 97... Kc3 {[%clk 0:00:11.3]} 98. Nf3 {[%clk 0:00:05.2]}
98... Ra8 {[%clk 0:00:09.8]} 99. Ke4 {[%clk 0:00:05.2]} 99... Rd8 {[%clk
0:00:09.2]} 100. Ne5 {[%clk 0:00:05.4]} 100... Rd4+ {[%clk 0:00:08.6]} 101. Ke3
{[%clk 0:00:05.9]} 101... Re4+ {[%clk 0:00:08.5]} 102. Kxe4 {[%clk 0:00:05.7]}
1/2-1/2

[Event "*** Titled Tuesday Blitz"]
[Site "Chess.com"]
[Date "2021.03.30"]
[Round "8"]
[White "MerryPoppies"]
[Black "Nemsko"]
[Result "1-0"]
[WhiteElo "2230"]
[BlackElo "2306"]
[TimeControl "180+1"]
[EndTime "11:23:24 PDT"]
[Termination "MerryPoppies won by resignation"]

1. d4 {[%clk 0:03:00.9]} 1... Nf6 {[%clk 0:02:59.2]} 2. c4 {[%clk 0:03:00.5]}
2... g6 {[%clk 0:02:59.3]} 3. Nc3 {[%clk 0:03:00.5]} 3... d5 {[%clk 0:02:59.3]}
4. Nf3 {[%clk 0:02:59.9]} 4... Bg7 {[%clk 0:02:59.2]} 5. e3 {[%clk 0:02:59.4]}
5... O-O {[%clk 0:02:58.7]} 6. cxd5 {[%clk 0:02:58.7]} 6... Nxd5 {[%clk
0:02:59.6]} 7. Bc4 {[%clk 0:02:58.8]} 7... Nxc3 {[%clk 0:02:57.2]} 8. bxc3
{[%clk 0:02:58.9]} 8... c5 {[%clk 0:02:57.5]} 9. O-O {[%clk 0:02:58.7]} 9... Qa5
{[%clk 0:02:55]} 10. Qb3 {[%clk 0:02:54.8]} 10... Bg4 {[%clk 0:02:41.6]} 11. Ng5
{[%clk 0:02:47]} 11... e6 {[%clk 0:02:25.5]} 12. Qxb7 {[%clk 0:02:36.7]} 12...
cxd4 {[%clk 0:02:19.1]} 13. exd4 {[%clk 0:02:32.7]} 13... Qxg5 {[%clk
0:02:17.7]} 14. Bxg5 {[%clk 0:02:32]} 1-0

[Event "*** Titled Tuesday Blitz"]
[Site "Chess.com"]
[Date "2021.03.30"]
[Round "8"]
[White "canary2016"]
[Black "ChessFunMaker"]
[Result "0-1"]
[WhiteElo "2024"]
[BlackElo "2251"]
[TimeControl "180+1"]
[EndTime "11:24:35 PDT"]
[Termination "ChessFunMaker won by checkmate"]

1. d4 {[%clk 0:03:00.9]} 1... Nf6 {[%clk 0:03:00.1]} 2. c4 {[%clk 0:03:00.4]}
2... d6 {[%clk 0:03:00.7]} 3. Nf3 {[%clk 0:02:59.8]} 3... g6 {[%clk 0:03:00.8]}
4. g3 {[%clk 0:02:59.4]} 4... Bg7 {[%clk 0:03:01.1]} 5. Bg2 {[%clk 0:02:59.3]}
5... O-O {[%clk 0:03:01.7]} 6. O-O {[%clk 0:02:59.1]} 6... Nc6 {[%clk
0:03:02.3]} 7. Nc3 {[%clk 0:02:58.6]} 7... e5 {[%clk 0:03:02.9]} 8. e4 {[%clk
0:02:47]} 8... Bg4 {[%clk 0:02:54]} 9. Be3 {[%clk 0:02:34.5]} 9... exd4 {[%clk
0:02:27.4]} 10. Bxd4 {[%clk 0:02:33.2]} 10... Nxd4 {[%clk 0:02:24.3]} 11. Qxd4
{[%clk 0:02:32.5]} 11... Re8 {[%clk 0:02:09.8]} 12. Rfe1 {[%clk 0:02:31]} 12...
Nxe4 {[%clk 0:02:04.7]} 13. Qd2 {[%clk 0:02:30.4]} 13... Nxd2 {[%clk 0:02:03.4]}
14. Nxd2 {[%clk 0:02:28.5]} 14... Rxe1+ {[%clk 0:02:02.1]} 15. Rxe1 {[%clk
0:02:27.7]} 15... Bxc3 {[%clk 0:02:02.7]} 16. bxc3 {[%clk 0:02:27]} 16... Qf6
{[%clk 0:02:03.3]} 17. Bxb7 {[%clk 0:02:22.9]} 17... Qxc3 {[%clk 0:02:02.6]} 18.
Bxa8 {[%clk 0:02:20.4]} 18... Qxd2 {[%clk 0:02:03.1]} 19. Re8+ {[%clk
0:02:20.3]} 19... Kg7 {[%clk 0:02:03.3]} 20. Bd5 {[%clk 0:02:17.9]} 20... Bh3
{[%clk 0:01:59.6]} 21. f4 {[%clk 0:02:10.4]} 21... Qd4+ {[%clk 0:01:51.9]} 22.
Kh1 {[%clk 0:02:08.6]} 22... Qd1+ {[%clk 0:01:51.4]} 23. Re1 {[%clk 0:02:07.5]}
23... Qxe1# {[%clk 0:01:51.9]} 0-1

[Event "*** Titled Tuesday Blitz"]
[Site "Chess.com"]
[Date "2021.03.30"]
[Round "8"]
[White "ChristopherYoo"]
[Black "Aradhya2000"]
[Result "1-0"]
[WhiteElo "2908"]
[BlackElo "2582"]
[TimeControl "180+1"]
[EndTime "11:24:49 PDT"]
[Termination "ChristopherYoo won by checkmate"]

1. e4 {[%clk 0:03:00.9]} 1... e5 {[%clk 0:03:00]} 2. Nf3 {[%clk 0:03:00.7]} 2...
Nc6 {[%clk 0:03:00.3]} 3. Bb5 {[%clk 0:03:00.9]} 3... a6 {[%clk 0:03:00.2]} 4.
Ba4 {[%clk 0:03:00.6]} 4... Nf6 {[%clk 0:03:00.2]} 5. d4 {[%clk 0:03:00.9]} 5...
exd4 {[%clk 0:03:00.1]} 6. O-O {[%clk 0:03:00.7]} 6... Be7 {[%clk 0:02:59.6]} 7.
e5 {[%clk 0:03:01]} 7... Ne4 {[%clk 0:02:59.2]} 8. Nxd4 {[%clk 0:03:01.5]} 8...
Nc5 {[%clk 0:02:56.2]} 9. Nf5 {[%clk 0:03:01.4]} 9... d5 {[%clk 0:02:52.2]} 10.
Nxg7+ {[%clk 0:02:41.1]} 10... Kf8 {[%clk 0:02:50.2]} 11. Bh6 {[%clk 0:02:38.7]}
11... Kg8 {[%clk 0:02:47]} 12. Nc3 {[%clk 0:02:25.1]} 12... Nxa4 {[%clk
0:02:42.1]} 13. Nxd5 {[%clk 0:02:19.8]} 13... Nb6 {[%clk 0:02:36.3]} 14. Nxe7+
{[%clk 0:02:06.4]} 14... Qxe7 {[%clk 0:02:32]} 15. Nh5 {[%clk 0:01:59.3]} 15...
Nxe5 {[%clk 0:02:08.1]} 16. Re1 {[%clk 0:01:51.2]} 16... Bg4 {[%clk 0:02:07.9]}
17. Qd4 {[%clk 0:01:36]} 17... Bxh5 {[%clk 0:02:05.9]} 18. Rxe5 {[%clk
0:01:35.2]} 18... Qd6 {[%clk 0:02:04.2]} 19. Rg5+ {[%clk 0:01:34.1]} 19... Bg6
{[%clk 0:02:03.3]} 20. Qg7# {[%clk 0:01:33.6]} 1-0

[Event "*** Titled Tuesday Blitz"]
[Site "Chess.com"]
[Date "2021.03.30"]
[Round "8"]
[White "chess94cu"]
[Black "slavenok"]
[Result "1-0"]
[WhiteElo "2612"]
[BlackElo "2739"]
[TimeControl "180+1"]
[EndTime "11:25:14 PDT"]
[Termination "chess94cu won by resignation"]

1. d4 {[%clk 0:03:00.9]} 1... Nf6 {[%clk 0:02:56.9]} 2. c4 {[%clk 0:02:59.6]}
2... e6 {[%clk 0:02:57.3]} 3. Nf3 {[%clk 0:02:56.6]} 3... d5 {[%clk 0:02:57.5]}
4. Nc3 {[%clk 0:02:55.1]} 4... Bb4 {[%clk 0:02:58]} 5. cxd5 {[%clk 0:02:52.4]}
5... Nxd5 {[%clk 0:02:57.7]} 6. Bg5 {[%clk 0:02:53]} 6... f6 {[%clk 0:02:52.7]}
7. Bd2 {[%clk 0:02:51.6]} 7... O-O {[%clk 0:02:53]} 8. e4 {[%clk 0:02:45.6]}
8... Nxc3 {[%clk 0:02:52.8]} 9. bxc3 {[%clk 0:02:46.5]} 9... Be7 {[%clk
0:02:52.6]} 10. Bc4 {[%clk 0:02:44.3]} 10... c5 {[%clk 0:02:51.2]} 11. Qb3
{[%clk 0:02:43.9]} 11... Qb6 {[%clk 0:02:48.8]} 12. O-O {[%clk 0:02:37.3]} 12...
cxd4 {[%clk 0:02:43.8]} 13. cxd4 {[%clk 0:02:34.2]} 13... Kh8 {[%clk 0:02:43.7]}
14. Qxb6 {[%clk 0:02:27.9]} 14... axb6 {[%clk 0:02:43]} 15. Rab1 {[%clk
0:02:28.8]} 15... e5 {[%clk 0:02:28.2]} 16. dxe5 {[%clk 0:02:20.3]} 16... fxe5
{[%clk 0:02:27.7]} 17. Nxe5 {[%clk 0:02:18.3]} 17... g6 {[%clk 0:02:22.7]} 18.
Bc3 {[%clk 0:02:13.1]} 18... Bf6 {[%clk 0:02:21.8]} 19. Rxb6 {[%clk 0:02:09.6]}
19... Kg7 {[%clk 0:02:21.4]} 20. Rd1 {[%clk 0:01:52.6]} 20... Nc6 {[%clk
0:02:15.8]} 21. f4 {[%clk 0:01:31.2]} 21... Bxe5 {[%clk 0:02:08.9]} 22. fxe5
{[%clk 0:01:30.3]} 22... Bg4 {[%clk 0:02:07.8]} 23. Rxb7+ {[%clk 0:01:26.5]} 1-0

[Event "*** Titled Tuesday Blitz"]
[Site "Chess.com"]
[Date "2021.03.30"]
[Round "8"]
[White "As0nchess"]
[Black "KubaGepard"]
[Result "0-1"]
[WhiteElo "2598"]
[BlackElo "2429"]
[TimeControl "180+1"]
[EndTime "11:25:37 PDT"]
[Termination "KubaGepard won by resignation"]

1. Nf3 {[%clk 0:03:00.9]} 1... d5 {[%clk 0:02:58.9]} 2. g3 {[%clk 0:03:00.9]}
2... Nf6 {[%clk 0:02:58.2]} 3. Bg2 {[%clk 0:03:01]} 3... Nbd7 {[%clk 0:02:56.6]}
4. O-O {[%clk 0:02:56.9]} 4... e5 {[%clk 0:02:56.2]} 5. d3 {[%clk 0:02:57.2]}
5... Bd6 {[%clk 0:02:55.1]} 6. Nc3 {[%clk 0:02:54.3]} 6... c6 {[%clk 0:02:54.4]}
7. e4 {[%clk 0:02:54.7]} 7... h6 {[%clk 0:02:52.1]} 8. Nh4 {[%clk 0:02:54.9]}
8... Nb6 {[%clk 0:02:37.6]} 9. a4 {[%clk 0:02:51.9]} 9... Be6 {[%clk 0:02:23.2]}
10. h3 {[%clk 0:02:50.1]} 10... Qd7 {[%clk 0:02:05.7]} 11. Kh2 {[%clk
0:02:48.9]} 11... d4 {[%clk 0:01:54.4]} 12. Ne2 {[%clk 0:02:43.6]} 12... g5
{[%clk 0:01:51]} 13. Nf5 {[%clk 0:02:42.6]} 13... Bxf5 {[%clk 0:01:45.8]} 14.
exf5 {[%clk 0:02:43.5]} 14... Nbd5 {[%clk 0:01:37.9]} 15. c4 {[%clk 0:02:36.8]}
15... dxc3 {[%clk 0:01:30.7]} 16. bxc3 {[%clk 0:02:37.7]} 16... Qxf5 {[%clk
0:01:25.2]} 17. Rb1 {[%clk 0:02:30.4]} 17... O-O-O {[%clk 0:01:22.2]} 18. Qb3
{[%clk 0:02:27.8]} 18... Rd7 {[%clk 0:01:18.3]} 19. c4 {[%clk 0:02:25.9]} 19...
Ne7 {[%clk 0:01:11.7]} 20. a5 {[%clk 0:02:21.8]} 20... Bb8 {[%clk 0:01:07.4]}
21. a6 {[%clk 0:02:20.2]} 21... b6 {[%clk 0:01:05.5]} 22. c5 {[%clk 0:02:11.9]}
22... Rxd3 {[%clk 0:01:01.9]} 23. Qxf7 {[%clk 0:02:11.3]} 23... Ng4+ {[%clk
0:00:59.2]} 0-1